bitfinex/quotes_ETHUSD_20250329
["timestamp","ask_amount","ask_price","bid_price","bid_amount"]
[1743207968806,1.9607696,1909.1,1908.9,0.29320266]
[1743207974545,1.9607696,1909.1,1908.9,5.53175266]
[1743207974837,1.0435696,1909.1,1908.9,5.53175266]
[1743207976035,1.0435696,1909.1,1908.9,0.29320266]
[1743207981043,1.0435696,1909.1,1908.9,5.53162266]
[1743207985849,1.0435696,1909.1,1908.9,0.29320266]
[1743207986147,8.47821518,1909.2,1908.9,0.29320266]
[1743207986344,9.8497947,1909.2,1908.9,0.29320266]
[1743207987350,10.89023041,1909.2,1908.9,0.29320266]
[1743207987848,2.23207518,1909.1,1908.9,0.29320266]
[1743207988048,7.47034518,1909.1,1908.7,6.23969]
[1743207988237,7.47034518,1909.1,1908.8,0.2914269]
[1743207988445,8.41544051,1909.1,1908.8,0.2914269]
[1743207989956,11.38878518,1908.9,1908.8,0.2914269]
[1743207990127,0.9181,1908.6,1908.5,4.884]
[1743207990327,3.15017518,1908.6,1908.4,4.884]
[1743207990653,8.38963518,1908.6,1908.4,4.884]
[1743207990855,6.15756,1908.6,1908.4,4.884]
[1743207991356,4.5130707,1908.6,1908.3,32.616]
[1743207991521,3.15017518,1908.6,1908.3,32.616]
[1743207991720,1.27854743,1908.5,1908.3,32.616]
[1743207992844,1.27854743,1908.4,1908.3,32.616]
[1743207993657,0.49174901,1908.4,1908.3,32.616]
[1743207994155,0.49174901,1908.4,1908.3,37.85626]
[1743207995760,0.49174901,1908.4,1908.3,32.97226]
[1743207996258,0.49174901,1908.4,1908.3,33.26435349]
[1743207996844,0.49174901,1908.4,1908.3,5.53235349]
[1743208003764,0.49174901,1908.4,1908.3,8.11041905]
[1743208004470,0.49174901,1908.4,1908.3,8.11041616]
[1743208005860,0.49174901,1908.4,1908.3,8.05802084]
[1743208006370,0.49174901,1908.4,1908.3,8.11041618]
[1743208009974,3.9181,1908.7,1908.4,5.23979]
[1743208010177,5.05701352,1908.7,1908.4,5.23979]
[1743208010380,5.05701352,1908.7,1908.5,0.29227332]
[1743208011049,5.05701352,1908.7,1908.5,5.53195332]
[1743208012281,5.05701352,1908.7,1908.5,0.29227332]
[1743208013061,7.2890887,1908.7,1908.5,0.29227332]
[1743208013263,0.72890887,1908.6,1908.5,0.29227332]
[1743208013471,6.15017518,1908.7,1908.5,0.29227332]
[1743208013979,11.38939518,1908.7,1908.5,0.29227332]
[1743208014151,2.23207518,1908.6,1908.5,0.29227332]
[1743208014480,2.23207518,1908.6,1908.5,0.29170407]
[1743208014645,11.38939518,1908.7,1908.3,5.24025]
[1743208014852,11.38939518,1908.7,1908.4,0.29181119]
[1743208015051,7.8130137,1908.7,1908.3,10.48031]
[1743208015276,7.8130137,1908.7,1908.4,0.29181119]
[1743208015474,6.9984,1909.1,1908.5,1.06329539]
[1743208015660,4.94531613,1909.3,1909.1,5.23795]
[1743208015869,4.00691613,1909.3,1909.2,0.2906042]
[1743208016369,16.17931262,1909.3,1909.2,0.2906042]
[1743208016560,17.44469489,1909.3,1909.2,0.2906042]
[1743208016763,6.17702,1908.9,1908.6,4.885]
[1743208018255,5.23889,1908.8,1908.6,4.885]
[1743208018878,8.96033237,1908.8,1908.6,4.885]
[1743208019079,9.17756,1908.7,1908.6,4.885]
[1743208021053,9.66895285,1908.7,1908.3,4.885]
[1743208021785,9.66895285,1908.7,1908.3,10.12525]
[1743208021786,4.42979285,1908.7,1908.3,10.12525]
[1743208021985,3.49139285,1908.7,1908.4,6.23593808]
[1743208022184,0.49139285,1908.6,1908.5,5.23955]
[1743208022680,0.49139285,1908.6,1908.5,5.2919418]
[1743208023072,0.49139285,1908.6,1908.5,5.23955]
[1743208023777,0.49139285,1908.6,1908.4,6.18352]
[1743208024988,0.49139285,1908.5,1908.4,6.18352]
[1743208025362,0.49139285,1908.5,1908.4,11.47583174]
[1743208025564,0.49139285,1908.5,1908.4,12.07286438]
[1743208026289,0.49139285,1908.5,1908.4,12.33793632]
[1743208028459,10.24736658,1909.1,1908.6,5.2393]
[1743208028663,10.24736658,1909.1,1908.7,0.26475061]
[1743208028963,10.24736658,1909.1,1908.6,5.2393]
[1743208029164,1.02473666,1909.0,1908.8,0.26464352]
[1743208029392,1.02473666,1909.0,1908.6,5.2393]
[1743208029593,1.02473666,1909.0,1908.9,0.26453644]
[1743208029757,1.02473666,1909.0,1908.6,10.47859]
[1743208029961,1.02473666,1909.0,1908.9,0.26453644]
[1743208030167,3.0,1908.9,1908.6,5.23929]
[1743208030393,3.92630967,1908.9,1908.6,5.23929]
[1743208030895,3.0,1908.9,1908.6,5.23929]
[1743208031201,3.0,1908.9,1908.6,10.47853]
[1743208031492,3.9511,1909.1,1908.6,5.23944]
[1743208031661,3.9511,1909.1,1908.8,5.23886]
[1743208031862,9.18923,1909.1,1908.7,10.12415]
[1743208032062,0.918923,1909.0,1908.7,10.12415]
[1743208034797,0.918923,1909.0,1908.7,4.885]
[1743208034984,3.0,1908.7,1908.4,4.885]
[1743208035168,8.2393,1908.7,1908.4,4.885]
[1743208036393,0.984,1908.6,1908.4,4.885]
[1743208036772,0.984,1908.6,1908.3,5.24006]
[1743208036979,0.49126862,1908.5,1908.3,10.12506]
[1743208037384,0.984,1908.4,1908.2,27.73]
[1743208037971,0.49126862,1908.3,1908.2,27.73]
[1743208038166,0.49126862,1908.3,1908.2,32.97054]
[1743208040972,0.49126862,1908.3,1908.2,33.97944]
[1743208041178,0.49126862,1908.3,1908.2,38.389961]
[1743208041376,0.49126862,1908.3,1908.2,38.65612034]
[1743208043003,3.0,1908.7,1908.3,5.24004]
[1743208043406,3.0,1908.7,1908.4,0.26725481]
[1743208043777,3.0,1908.7,1908.3,10.4801]
[1743208044111,3.0,1908.7,1908.4,0.26725481]
[1743208044409,3.0,1908.7,1908.3,10.4801]
[1743208044596,3.0,1908.7,1908.5,0.26714769]
[1743208044796,3.0,1908.7,1908.4,5.50720481]
[1743208044975,3.0,1908.7,1908.6,0.26704058]
[1743208045176,4.4006322,1908.7,1908.4,5.23995]
[1743208045375,3.0,1908.7,1908.6,0.26704058]
[1743208045587,3.0,1908.7,1908.4,5.23995]
[1743208045786,3.0,1908.7,1908.6,0.26704058]
[1743208046304,3.0,1908.7,1908.4,5.23995]
[1743208046507,3.0,1908.7,1908.6,0.26704058]
[1743208046801,4.4006322,1908.7,1908.4,5.23995]
[1743208047001,3.0,1908.7,1908.6,0.26704058]
[1743208047309,3.9964,1908.9,1908.7,5.23916]
[1743208047476,3.0,1908.9,1908.7,10.47821]
[1743208047808,0.9964,1909.1,1908.8,0.26682639]
[1743208047990,1.04940767,1908.9,1908.8,5.50570639]
[1743208048611,1.04940767,1908.9,1908.8,0.26682639]
[1743208051100,1.04940767,1908.9,1908.8,5.50571639]
[1743208051482,1.04940767,1908.9,1908.8,6.67552403]
[1743208051896,1.04940767,1908.9,1908.8,6.72790675]
[1743208052117,0.9297,1909.4,1909.2,5.23776]
[1743208052317,5.23688,1909.6,1909.2,5.23776]
[1743208052318,9.88802237,1909.6,1909.3,0.26572351]
[1743208052484,4.65114237,1909.6,1909.3,5.50317351]
[1743208052686,0.46511424,1909.5,1909.3,5.50317351]
[1743208052986,4.65114237,1909.6,1909.3,5.50312351]
[1743208053186,0.9297,1909.8,1909.5,5.23697]
[1743208053486,3.9297,1909.8,1909.6,0.26147386]
[1743208054493,3.9297,1909.8,1909.4,16.31257]
[1743208054695,3.9297,1909.8,1909.7,0.26136687]
[1743208054883,3.9297,1909.8,1909.4,16.31257]
[1743208055221,3.9297,1909.8,1909.5,5.49853086]
[1743208055519,3.0,1909.8,1909.5,5.49853086]
[1743208057196,8.23615,1909.8,1909.5,0.26158086]
[1743208057813,3.0,1909.8,1909.5,5.49853086]
[1743208058311,3.0,1909.8,1909.5,10.73528086]
[1743208058515,3.0,1909.8,1909.5,5.49833086]
[1743208059915,8.23619,1909.8,1909.5,0.26158086]
[1743208060091,0.9297,1909.6,1909.5,0.26158086]
[1743208060288,6.16639,1909.6,1909.5,0.26158086]
[1743208061229,0.9297,1909.6,1909.5,0.26158086]
[1743208061391,9.26924867,1909.7,1909.5,0.26158086]
[1743208061392,8.23662,1909.7,1909.5,0.26158086]
[1743208061591,3.0,1909.7,1909.5,0.26158086]
[1743208062219,8.23643,1909.7,1909.5,0.26158086]
[1743208066632,5.23669,1909.6,1909.5,0.26158086]
[1743208067004,11.28094437,1909.6,1909.5,0.26158086]
[1743208067525,16.51788437,1909.6,1909.2,4.883]
[1743208067732,5.23709,1909.5,1909.3,0.26179489]
[1743208070130,1.03088344,1909.5,1909.3,1.28676752]
[1743208070428,0.9755,1909.8,1909.4,5.23709]
[1743208070627,3.0,1909.7,1909.4,5.23711]
[1743208070931,3.0,1909.7,1909.5,0.25970452]
[1743208071929,8.23647,1909.7,1909.5,0.25970452]
[1743208072122,8.23647,1909.7,1909.3,6.2101]
[1743208072441,8.23647,1909.7,1909.4,0.31217828]
[1743208072732,3.0,1909.7,1909.4,0.31217828]
[1743208073496,3.0,1909.7,1909.4,5.54941828]
[1743208074015,8.23647,1909.7,1909.4,0.25981153]
[1743208074403,8.23647,1909.7,1909.3,6.21007]
[1743208074615,8.23647,1909.7,1909.5,0.25970452]
[1743208074816,3.0,1909.7,1909.4,0.25981153]
[1743208075108,3.0,1909.7,1909.5,0.25970452]
[1743208075835,3.0,1909.7,1909.5,5.49654452]
[1743208077241,2.01301541,1909.9,1909.6,5.23669]
[1743208077535,3.0,1910.0,1909.7,0.25949054]
[1743208077738,12.86684299,1910.3,1909.8,5.23588]
[1743208077943,18.94476909,1910.3,1909.8,5.49351844]
[1743208078113,17.47586002,1910.3,1909.8,5.49351844]
[1743208078509,11.80282782,1910.3,1909.9,5.23584]
[1743208078709,8.23505,1910.2,1910.0,0.25742452]
[1743208078909,8.23505,1910.2,1909.8,5.23588]
[1743208079146,8.23505,1910.2,1909.9,0.25753147]
[1743208079318,14.94401875,1910.2,1909.7,10.47253]
[1743208079642,3.72144237,1910.1,1909.8,5.49372844]
[1743208079811,3.72144237,1910.1,1909.8,0.25763844]
[1743208080912,8.95689237,1910.1,1909.8,0.25763844]
[1743208081112,3.72144237,1910.1,1909.8,5.49367844]
[1743208082645,3.72144237,1910.1,1909.8,6.49777844]
[1743208082949,3.72144237,1910.1,1909.8,11.73380844]
[1743208083441,3.72144237,1910.1,1909.9,5.23586]
[1743208083845,3.72144237,1910.1,1910.0,0.25742452]
[1743208084022,3.0,1910.2,1910.0,0.25742452]
[1743208088152,3.0,1910.2,1910.0,5.49283452]
[1743208090526,3.0,1910.2,1910.0,0.25742452]
[1743208092253,4.02795935,1910.3,1910.1,6.23938]
[1743208092454,1.02795935,1910.3,1910.2,5.23505]
[1743208092653,1.02795935,1910.3,1910.2,5.49047248]
[1743208094456,1.02795935,1910.3,1910.2,0.25542248]
[1743208095853,1.02795935,1910.3,1910.2,5.49047248]
[1743208097053,1.02795935,1910.3,1910.2,0.25542248]
[1743208097763,1.02795935,1910.3,1910.2,5.49047248]
[1743208099855,3.0,1910.5,1910.2,5.49047248]
[1743208099856,0.1122262,1910.9,1910.8,5.23341]
[1743208100223,0.1122262,1910.9,1910.8,6.47813303]
[1743208108446,0.1122262,1910.9,1910.8,6.42580519]
[1743208109041,0.1122262,1910.9,1910.8,6.47812044]
[1743208109242,0.1122262,1910.9,1910.8,6.42580519]
[1743208109441,0.1122262,1910.9,1910.8,8.17294232]
[1743208110744,0.1122262,1910.9,1910.8,8.12062705]
[1743208111438,0.1122262,1910.9,1910.8,8.17294236]
[1743208111638,0.1122262,1910.9,1910.8,8.72294236]
[1743208112038,6.2e-06,1910.9,1910.8,8.72294236]
[1743208113261,6.2e-06,1910.9,1910.8,13.06693726]
[1743208113466,6.2e-06,1910.9,1910.8,13.01462705]
[1743208115164,6.2e-06,1910.9,1910.8,13.01362705]
[1743208117167,6.2e-06,1910.9,1910.8,8.12062705]
[1743208117740,6.2e-06,1910.9,1910.8,13.01162705]
[1743208117970,6.2e-06,1910.9,1910.8,1.94541705]
[1743208118143,6.2e-06,1910.9,1910.8,10.37600519]
[1743208118786,6.2e-06,1910.9,1910.8,0.25059519]
[1743208118971,6.2e-06,1910.9,1910.8,5.14159519]
[1743208119135,6.2e-06,1910.9,1910.8,10.37500519]
[1743208120678,6.2e-06,1910.9,1910.8,5.14159519]
[1743208121174,6.2e-06,1910.9,1910.8,10.37500519]
[1743208123093,6.2e-06,1910.9,1910.8,10.42733024]
[1743208123298,6.2e-06,1910.9,1910.8,12.89957976]
[1743208123590,6.2e-06,1910.9,1910.8,12.84725471]
[1743208129086,6.2e-06,1910.9,1910.8,10.37500519]
[1743208129291,6.2e-06,1910.9,1910.8,5.14159519]
[1743208129996,6.2e-06,1910.9,1910.8,10.37500519]
[1743208130196,6.2e-06,1910.9,1910.8,5.14159519]
[1743208132198,6.2e-06,1910.9,1910.8,10.37500519]
[1743208133689,6.2e-06,1910.9,1910.8,5.14159519]
[1743208134069,6.2e-06,1910.9,1910.8,5.19392075]
[1743208134472,6.2e-06,1910.9,1910.8,10.42733075]
[1743208140909,6.2e-06,1910.9,1910.8,10.37500519]
[1743208141412,6.2e-06,1910.9,1910.8,10.42733283]
[1743208141707,6.2e-06,1910.9,1910.8,5.14159519]
[1743208142709,6.2e-06,1910.9,1910.8,5.1939227]
[1743208143011,6.2e-06,1910.9,1910.8,10.4273327]
[1743208146016,6.2e-06,1910.9,1910.8,11.47006597]
[1743208146221,6.2e-06,1910.9,1910.8,11.41773846]
[1743208148197,6.2e-06,1910.9,1910.8,12.39373846]
[1743208157625,6.2e-06,1910.9,1910.8,40.08473846]
[1743208159742,6.2e-06,1910.9,1910.8,40.47202915]
[1743208163613,6.2e-06,1910.9,1910.8,39.09573846]
[1743208166835,0.9573062,1910.9,1910.8,39.09573846]
[1743208167006,0.9573062,1910.9,1910.8,38.05300519]
[1743208169104,6.2e-06,1910.9,1910.8,38.05300519]
[1743208173504,6.2e-06,1910.9,1910.8,39.00070519]
[1743208173704,6.2e-06,1910.9,1910.8,39.55070519]
[1743208174109,6.2e-06,1910.9,1910.8,39.00070519]
[1743208174426,6.2e-06,1910.9,1910.8,43.42413571]
[1743208178941,6.2e-06,1910.9,1910.8,37.59843571]
[1743208179139,6.2e-06,1910.9,1910.8,38.05300519]
[1743208179509,0.9800062,1910.9,1910.8,38.05300519]
[1743208179709,0.9800062,1910.9,1910.8,32.81959519]
[1743208180441,1.47112471,1910.9,1910.8,32.81959519]
[1743208182042,1.47112471,1910.9,1910.8,27.94159519]
[1743208182413,1.47112471,1910.9,1910.8,32.81959519]
[1743208186654,1.47112471,1910.9,1910.8,5.12859519]
[1743208190654,1.47112471,1910.9,1910.8,0.25059519]
[1743208190855,14.09609955,1910.9,1910.8,0.18602496]
[1743208191235,0.9234,1910.6,1910.4,4.878]
[1743208191965,0.9234,1910.6,1910.4,10.11249]
[1743208192863,0.49111851,1910.5,1910.4,10.11249]
[1743208197248,0.49111851,1910.5,1910.4,4.878]
[1743208198654,0.9234,1910.4,1910.1,5.23517]
[1743208198847,5.23484,1910.3,1910.1,4.879]
[1743208200035,0.49111851,1910.2,1910.1,4.879]
[1743208200956,0.9368,1910.1,1910.0,4.879]
[1743208201265,0.9368,1910.1,1909.9,27.693]
[1743208201470,0.9368,1910.1,1909.9,32.572]
[1743208201970,0.49111851,1910.0,1909.9,32.572]
[1743208203059,6.66351851,1910.0,1909.9,27.693]
[1743208203260,8.2255586,1910.0,1909.9,27.693]
[1743208204366,6.66351851,1910.0,1909.9,27.693]
[1743208205171,6.66351851,1910.0,1909.7,4.879]
[1743208205566,5.23599,1909.9,1909.7,4.88]
[1743208205767,5.72710851,1909.9,1909.7,4.88]
[1743208206674,0.49111851,1909.8,1909.7,4.88]
[1743208207949,1.42791851,1909.8,1909.6,4.88]
[1743208208141,2.61791436,1909.8,1909.6,4.88]
[1743208209171,0.49111851,1909.7,1909.6,4.88]
[1743208210768,0.49111851,1909.7,1909.3,5.23751]
[1743208210769,5.72764851,1909.7,1909.3,5.23751]
[1743208211076,0.49111851,1909.7,1909.4,4.881]
[1743208211246,0.49111851,1909.6,1909.4,10.1182]
[1743208212372,0.49111851,1909.5,1909.4,10.1182]
[1743208212768,0.49111851,1909.5,1909.4,4.881]
[1743208212991,0.49111851,1909.5,1909.2,6.23226]
[1743208213289,1.43281851,1909.5,1909.4,4.881]
[1743208215255,1.43281851,1909.5,1909.3,4.881]
[1743208215639,1.43281851,1909.5,1909.2,5.2376]
[1743208215873,0.49111851,1909.4,1909.3,4.881]
[1743208217773,1.48001851,1909.4,1909.2,5.28997212]
[1743208217973,1.48001851,1909.4,1909.3,0.16865372]
[1743208218174,2.5238756,1909.4,1909.3,0.16865372]
[1743208218347,7.7612356,1909.4,1909.1,27.705]
[1743208218547,7.7612356,1909.4,1909.3,0.16991357]
[1743208218875,7.7612356,1909.4,1909.1,32.587]
[1743208220074,7.7612356,1909.4,1909.2,0.17002061]
[1743208220465,0.49111851,1909.3,1909.2,0.17002061]
[1743208220661,0.49111851,1909.3,1909.2,5.40781061]
[1743208220898,0.49111851,1909.3,1909.2,9.20731267]
[1743208221064,0.49111851,1909.3,1909.2,9.25968568]
[1743208221681,0.49111851,1909.3,1909.2,9.20731267]
[1743208222055,0.49111851,1909.3,1909.2,0.17002061]
[1743208222687,11.46336,1909.5,1909.2,0.17002061]
[1743208222859,0.9889,1909.5,1909.2,5.40768061]
[1743208223056,10.34367151,1909.7,1909.3,5.23751]
[1743208223256,5.2367,1909.6,1909.3,0.17013083]
[1743208223488,6.79473715,1909.6,1909.3,0.17013083]
[1743208228589,5.23724,1909.4,1909.3,0.17013083]
[1743208228993,5.23724,1909.4,1909.2,4.882]
[1743208229169,5.23724,1909.4,1909.3,0.17078261]
[1743208229993,6.15014,1909.4,1909.3,0.17078261]
[1743208230158,6.9087777,1909.4,1909.1,4.882]
[1743208230365,5.23757,1909.3,1909.2,0.17088964]
[1743208232078,1.6715377,1909.4,1909.2,0.17088964]
[1743208232259,0.9129,1909.4,1909.2,0.17088964]
[1743208233396,6.15019,1909.4,1909.2,0.17088964]
[1743208234563,0.9129,1909.6,1909.4,5.23716]
[1743208234765,9.14918,1909.8,1909.3,5.23738]
[1743208234973,9.14918,1909.8,1909.5,0.17117696]
[1743208235180,10.18847928,1909.8,1909.6,0.17106996]
[1743208235379,10.18847928,1909.8,1909.3,5.23738]
[1743208235584,5.23653,1909.7,1909.3,5.23738]
[1743208235861,5.23653,1909.7,1909.4,0.17128397]
[1743208236096,6.77903093,1909.7,1909.4,0.17128397]
[1743208236298,6.77903093,1909.7,1909.3,5.23738]
[1743208236469,6.77903093,1909.7,1909.5,0.17117696]
[1743208236791,3.0,1909.5,1909.2,6.24158]
[1743208236996,3.9129,1909.5,1909.1,10.12006]
[1743208237697,9.14987,1909.5,1909.1,10.12006]
[1743208238699,5.23735,1909.4,1909.1,4.882]
[1743208239067,3.9129,1909.5,1909.2,0.05237655]
[1743208239278,3.0,1909.5,1909.2,5.23768]
[1743208242500,8.23697,1909.5,1909.2,5.23768]
[1743208242800,8.23697,1909.5,1909.1,11.12383]
[1743208242996,14.821553,1909.5,1909.1,5.23803]
[1743208243302,10.497243,1909.5,1909.2,4.882]
[1743208244904,3.0,1909.5,1909.2,4.882]
[1743208245074,3.0,1909.5,1909.2,4.93437214]
[1743208245903,3.0,1909.5,1909.2,10.17205214]
[1743208246075,3.0,1909.5,1909.2,10.17205215]
[1743208246469,3.0,1909.5,1909.2,10.11968]
[1743208246696,0.9784,1909.9,1909.3,0.9566]
[1743208246899,5.23642,1909.8,1909.3,6.19406]
[1743208247105,10.47278,1909.8,1909.3,6.19406]
[1743208247301,5.23643,1909.7,1909.3,6.19406]
[1743208247802,5.23636,1909.8,1909.4,0.05236673]
[1743208248010,5.23636,1909.8,1909.4,5.28959673]
[1743208248311,10.47272,1909.8,1909.4,5.23723]
[1743208248606,5.23636,1909.8,1909.4,5.23723]
[1743208248802,5.23636,1909.8,1909.4,5.28959674]
[1743208249003,0.523636,1909.7,1909.4,5.28959674]
[1743208249173,5.23636,1909.8,1909.4,5.28959674]
[1743208249374,5.23636,1909.8,1909.4,5.23723]
[1743208249889,5.23636,1909.8,1909.4,5.28959675]
[1743208250207,9.21428,1909.9,1909.5,5.40775586]
[1743208250592,14.45038,1909.9,1909.5,0.17078586]
[1743208250791,1.445038,1909.8,1909.5,0.17078586]
[1743208251091,6.681228,1909.8,1909.5,0.17078586]
[1743208251890,6.681228,1909.8,1909.6,4.882]
[1743208252301,9.681228,1909.8,1909.7,0.17057187]
[1743208254101,4.445038,1909.8,1909.7,0.17057187]
[1743208254707,9.681188,1909.8,1909.7,0.17057187]
[1743208255817,9.681188,1909.8,1909.5,4.882]
[1743208256017,9.681188,1909.8,1909.6,0.16994019]
[1743208256220,0.87163685,1909.7,1909.6,0.16994019]
[1743208258616,8.23615,1909.8,1909.6,0.16994019]
[1743208263524,12.91746237,1909.7,1909.6,0.16994019]
[1743208263905,5.23722,1909.5,1909.2,4.882]
[1743208264244,6.19696,1909.4,1909.2,4.882]
[1743208265035,6.19696,1909.4,1909.3,0.15502511]
[1743208265342,7.71252224,1909.4,1909.3,0.15502511]
[1743208270546,20.49396461,1909.4,1909.3,0.15502511]
[1743208270718,5.23866,1908.9,1908.6,4.882]
[1743208270922,5.23839,1909.0,1908.6,10.12143]
[1743208271244,5.23839,1909.0,1908.7,0.15566747]
[1743208271446,5.23839,1909.0,1908.6,10.12143]
[1743208271752,5.23839,1909.0,1908.7,0.15566747]
[1743208272059,5.23876,1908.9,1908.5,5.23949]
[1743208272340,5.23876,1908.9,1908.6,5.03777457]
[1743208273873,10.47763,1908.9,1908.6,5.03777457]
[1743208274172,5.23876,1908.9,1908.6,5.03777457]
[1743208275127,0.9842,1908.8,1908.6,0.15577457]
[1743208275556,5.23916,1908.7,1908.5,4.883]
[1743208276267,5.23916,1908.7,1908.3,27.718]
[1743208276477,5.23916,1908.7,1908.3,32.601]
[1743208277472,10.47856,1908.7,1908.3,27.718]
[1743208277672,10.47856,1908.7,1908.3,32.601]
[1743208277841,11.523558,1908.7,1908.3,32.601]
[1743208279969,5.23949,1908.6,1908.3,32.601]
[1743208280155,5.23949,1908.6,1908.4,0.16219352]
[1743208280557,5.23949,1908.6,1908.3,32.601]
[1743208280862,5.23949,1908.6,1908.4,0.16219352]
[1743208281160,6.04060261,1908.6,1908.3,32.601]
[1743208281364,11.28031261,1908.6,1908.5,0.1620864]
[1743208281564,5.23971,1908.5,1908.4,0.16219352]
[1743208281764,5.23971,1908.5,1908.3,32.601]
[1743208283369,5.23971,1908.5,1908.3,27.718]
[1743208283569,5.23971,1908.5,1908.3,32.602]
[1743208283977,10.74624498,1908.6,1908.3,32.602]
[1743208284159,6.22369,1908.6,1908.3,32.602]
[1743208284633,5.23949,1908.6,1908.3,32.602]
[1743208285957,10.47915,1908.6,1908.3,32.602]
[1743208286368,5.23949,1908.6,1908.3,32.602]
[1743208286570,10.47906,1908.6,1908.3,32.602]
[1743208287972,5.23949,1908.6,1908.3,32.602]
[1743208288864,5.23949,1908.6,1908.3,4.884]
[1743208293780,10.47915,1908.6,1908.3,4.884]
[1743208295080,10.47915,1908.6,1908.4,0.1642338]
[1743208295243,10.47915,1908.6,1908.3,4.884]
[1743208295449,10.47915,1908.6,1908.4,0.1642338]
[1743208295650,10.47915,1908.6,1908.3,4.884]
[1743208295982,5.23949,1908.6,1908.4,0.1642338]
[1743208296362,5.23949,1908.6,1908.3,4.884]
[1743208296563,8.23949,1908.6,1908.5,0.16408326]
[1743208297185,8.23949,1908.6,1908.3,4.884]
[1743208297385,8.23949,1908.6,1908.5,0.16408326]
[1743208297880,8.23949,1908.6,1908.3,4.884]
[1743208298081,8.23949,1908.6,1908.4,0.16419038]
[1743208298281,8.23949,1908.6,1908.3,4.884]
[1743208298480,8.23949,1908.6,1908.4,0.16419038]
[1743208298684,8.23949,1908.6,1908.3,4.884]
[1743208298995,8.23949,1908.6,1908.5,0.16408326]
[1743208299155,8.23949,1908.6,1908.4,0.16419038]
[1743208299356,8.23949,1908.6,1908.5,0.16408326]
[1743208299784,8.23949,1908.6,1908.3,4.884]
[1743208300085,8.23949,1908.6,1908.4,0.16419038]
[1743208300388,12.21617,1909.1,1908.5,0.9334]
[1743208300553,1.471921,1909.2,1908.8,5.23863]
[1743208300905,1.471921,1909.2,1909.0,0.9334]
[1743208301056,5.23737,1909.4,1909.0,0.9334]
[1743208301253,5.23737,1909.4,1909.1,0.16257257]
[1743208301254,3.0,1909.3,1909.1,0.16257257]
[1743208301457,5.23779,1909.2,1909.1,0.16257257]
[1743208301779,5.23779,1909.2,1908.9,4.885]
[1743208302082,7.87558124,1909.2,1909.0,0.16267962]
[1743208303759,5.23807,1909.1,1909.0,0.16267962]
[1743208304689,5.23807,1909.1,1908.8,5.8174]
[1743208304995,5.23807,1909.1,1909.0,0.16267962]
[1743208305183,5.23807,1909.1,1908.9,0.16278669]
[1743208305499,5.23807,1909.1,1909.0,0.16267962]
[1743208305662,5.83505361,1909.1,1909.0,0.16267962]
[1743208305865,5.83505361,1909.1,1908.8,5.8174]
[1743208306197,5.83505361,1909.1,1908.9,0.16278669]
[1743208306366,5.23834,1909.0,1908.9,0.16278669]
[1743208306968,5.23834,1909.0,1908.6,11.04862]
[1743208307167,9.55649598,1909.1,1908.9,0.16278669]
[1743208307388,0.9556496,1909.0,1908.7,5.23915]
[1743208307580,9.55649598,1909.1,1908.7,5.23915]
[1743208310102,9.55649598,1909.1,1908.8,0.16289376]
[1743208310315,4.31842598,1909.1,1908.8,0.16289376]
[1743208310471,5.23861,1908.9,1908.8,0.16289376]
[1743208310671,6.23071,1908.9,1908.6,5.8093]
[1743208310896,6.23071,1908.9,1908.7,0.16169852]
[1743208311070,5.23861,1908.9,1908.7,0.16169852]
[1743208311277,5.23861,1908.9,1908.6,5.8093]
[1743208311481,5.23861,1908.9,1908.7,0.16169852]
[1743208311681,9.55650598,1909.1,1908.7,5.2391]
[1743208311883,3.0,1909.1,1908.8,6.35946143]
[1743208312390,8.95897237,1909.3,1908.9,5.2384]
[1743208312714,5.23753,1909.3,1909.0,0.16137729]
[1743208313612,8.95897237,1909.3,1909.0,0.16137729]
[1743208314686,14.19674237,1909.3,1909.0,0.16137729]
[1743208315808,8.95897237,1909.3,1909.0,0.16137729]
[1743208318504,8.95897237,1909.3,1909.1,0.959]
[1743208318812,3.0,1909.4,1909.1,6.1968]
[1743208318999,3.0,1909.4,1909.2,0.14564387]
[1743208319400,3.9921,1909.6,1909.2,0.14564387]
[1743208319599,8.23677,1909.6,1909.2,0.14564387]
[1743208319796,5.23677,1909.6,1909.2,5.38330387]
[1743208320207,3.0,1909.5,1909.2,5.38330387]
[1743208320583,10.74084237,1909.8,1909.2,5.38330387]
[1743208320584,0.9594,1910.0,1909.6,5.23666]
[1743208320804,5.2355,1910.1,1909.7,0.9142]
[1743208321074,3.0,1909.9,1909.7,0.14510882]
[1743208321287,9.19532,1909.9,1909.7,0.14510882]
[1743208321508,10.638431,1909.9,1909.7,0.14510882]
[1743208322214,4.443111,1909.9,1909.7,0.14510882]
[1743208322419,3.0,1910.0,1909.7,0.14510882]
[1743208322923,3.0,1910.0,1909.8,0.9142]
[1743208323308,3.0,1910.0,1909.9,0.14489488]
[1743208323823,0.003728,1909.9,1909.8,0.9142]
[1743208324029,0.003728,1909.9,1909.8,0.96656029]
[1743208324192,0.003728,1909.9,1909.8,6.77063703]
[1743208325094,0.003728,1909.9,1909.8,6.91317004]
[1743208325480,0.003728,1909.9,1909.8,6.96552402]
[1743208325881,0.003728,1909.9,1909.8,5.99897004]
[1743208326078,0.003728,1909.9,1909.8,6.96552123]
[1743208326525,0.003728,1909.9,1909.8,6.91317004]
[1743208327607,0.003728,1909.9,1909.8,7.51551307]
[1743208327938,8e-06,1909.9,1909.8,7.85175006]
[1743208328305,8e-06,1909.9,1909.8,7.90408605]
[1743208328642,0.0045896,1910.5,1910.4,6.1487]
[1743208328822,0.0045896,1910.5,1910.4,12.177039]
[1743208328999,0.0045896,1910.5,1910.4,12.31893039]
[1743208338334,0.0045896,1910.5,1910.4,12.30993039]
[1743208339262,6.16319,1910.9,1910.5,5.23415]
[1743208339462,0.93,1910.9,1910.5,5.28634507]
[1743208339636,0.93,1910.9,1910.6,5.89791136]
[1743208340376,9.16233,1911.2,1910.8,5.23314]
[1743208340563,3.93,1911.2,1910.9,5.2331]
[1743208340720,3.0,1911.2,1910.9,5.41648082]
[1743208340927,3.0,1911.2,1910.9,5.36415459]
[1743208341801,3.0,1911.2,1910.9,0.13105459]
[1743208342010,8.23248,1911.2,1910.9,0.13105459]